[Event "Early-Titled-Tuesday-Blitz-June-18-2024"]
[Site "Chess.com"]
[Date "2024.06.18"]
[Round "11"]
[White "ImportedItalianMaple"]
[Black "Chessbard1972"]
[Result "1-0"]
[WhiteElo "2527"]
[BlackElo "2269"]
[TimeControl "180+1"]
[EndTime "10:08:35 PDT"]
[Termination "ImportedItalianMaple won by resignation"]

1. e4 {[%clk 0:03:00.9]} 1... e5 {[%clk 0:02:57.3]} 2. Nc3 {[%clk 0:03:00.6]}
2... Nc6 {[%clk 0:02:55.4]} 3. Bc4 {[%clk 0:03:00.7]} 3... Bc5 {[%clk
0:02:53.8]} 4. d3 {[%clk 0:03:00.6]} 4... Nf6 {[%clk 0:02:50.6]} 5. f4 {[%clk
0:03:00]} 5... d6 {[%clk 0:02:46.2]} 6. Nf3 {[%clk 0:02:56.3]} 6... Ng4 {[%clk
0:02:43.5]} 7. Qe2 {[%clk 0:02:40.8]} 7... Bf2+ {[%clk 0:02:39.8]} 8. Kf1 {[%clk
0:02:40.9]} 8... Bb6 {[%clk 0:02:39.4]} 9. h3 {[%clk 0:02:35.3]} 9... Nf6 {[%clk
0:02:33.8]} 10. f5 {[%clk 0:02:34.1]} 10... h6 {[%clk 0:02:33.2]} 11. Nd5 {[%clk
0:02:28.6]} 11... Nh5 {[%clk 0:02:27]} 12. Qe1 {[%clk 0:02:13.9]} 12... Ne7
{[%clk 0:02:21.3]} 13. g4 {[%clk 0:02:08.9]} 13... Nxd5 {[%clk 0:02:18.9]} 14.
Bxd5 {[%clk 0:02:03.3]} 14... Nf4 {[%clk 0:02:15]} 15. Bxf4 {[%clk 0:02:02.4]}
15... exf4 {[%clk 0:02:15.4]} 16. Qh4 {[%clk 0:01:51.8]} 16... Qxh4 {[%clk
0:02:06.3]} 17. Nxh4 {[%clk 0:01:52.7]} 17... c6 {[%clk 0:02:04.5]} 18. Bb3
{[%clk 0:01:52.3]} 18... O-O {[%clk 0:02:01.6]} 19. Kg2 {[%clk 0:01:50.7]} 19...
a5 {[%clk 0:02:00.3]} 20. a4 {[%clk 0:01:48.2]} 20... d5 {[%clk 0:01:57.4]} 21.
exd5 {[%clk 0:01:42.8]} 21... cxd5 {[%clk 0:01:57]} 22. Bxd5 {[%clk 0:01:43.7]}
22... Re8 {[%clk 0:01:50.6]} 23. Rhe1 {[%clk 0:01:42.1]} 23... Bd7 {[%clk
0:01:50.5]} 24. Bxb7 {[%clk 0:01:38.4]} 24... Rab8 {[%clk 0:01:48.4]} 25. Bd5
{[%clk 0:01:19.5]} 25... Be3 {[%clk 0:01:46.5]} 26. b3 {[%clk 0:01:10.3]} 26...
Kf8 {[%clk 0:01:36.8]} 27. Kf3 {[%clk 0:01:00.6]} 27... Re5 {[%clk 0:01:34.8]}
28. Be4 {[%clk 0:00:58.7]} 28... Rc5 {[%clk 0:01:32]} 29. Re2 {[%clk 0:00:58]}
29... Rbc8 {[%clk 0:01:22.5]} 30. Ra2 {[%clk 0:00:58.4]} 30... Bc6 {[%clk
0:00:55.1]} 31. Bxc6 {[%clk 0:00:53.8]} 31... R8xc6 {[%clk 0:00:55.2]} 32. Ng2
{[%clk 0:00:54.4]} 32... g5 {[%clk 0:00:54.3]} 33. Nxe3 {[%clk 0:00:52.6]} 33...
fxe3 {[%clk 0:00:54.1]} 34. Kxe3 {[%clk 0:00:53.2]} 34... h5 {[%clk 0:00:48.5]}
35. c4 {[%clk 0:00:52.1]} 35... hxg4 {[%clk 0:00:46.6]} 36. hxg4 {[%clk
0:00:52.3]} 36... Rh6 {[%clk 0:00:46.7]} 37. Kd4 {[%clk 0:00:50.7]} 37... Rcc6
{[%clk 0:00:45.1]} 38. Rad2 {[%clk 0:00:46.2]} 38... Rh4 {[%clk 0:00:43.9]} 39.
Re4 {[%clk 0:00:46.6]} 39... Rb6 {[%clk 0:00:41]} 40. Kc3 {[%clk 0:00:46.6]}
40... Rh1 {[%clk 0:00:36.5]} 41. c5 {[%clk 0:00:46.1]} 41... Rbh6 {[%clk
0:00:33.9]} 42. Rc4 {[%clk 0:00:39.4]} 42... Ke7 {[%clk 0:00:29.4]} 43. c6
{[%clk 0:00:30.9]} 43... Kd8 {[%clk 0:00:29.6]} 44. Rc5 {[%clk 0:00:27.9]} 44...
Kc7 {[%clk 0:00:29.3]} 45. Rxa5 {[%clk 0:00:27.7]} 45... Kxc6 {[%clk 0:00:29.7]}
46. Ra6+ {[%clk 0:00:28]} 46... Kc5 {[%clk 0:00:28.8]} 47. Rxh6 {[%clk
0:00:27.7]} 47... Rxh6 {[%clk 0:00:29]} 48. Re2 {[%clk 0:00:25.8]} 48... Rh4
{[%clk 0:00:26.7]} 49. Re5+ {[%clk 0:00:24.1]} 49... Kd6 {[%clk 0:00:26.2]} 50.
Re4 {[%clk 0:00:24.8]} 50... Rh1 {[%clk 0:00:23.1]} 51. a5 {[%clk 0:00:23.8]}
51... Kc5 {[%clk 0:00:22.4]} 52. a6 {[%clk 0:00:20.5]} 52... Kb6 {[%clk
0:00:22]} 53. Ra4 {[%clk 0:00:21.1]} 53... Rc1+ {[%clk 0:00:20.4]} 54. Kd4
{[%clk 0:00:20.6]} 54... Rc8 {[%clk 0:00:20.3]} 55. a7 {[%clk 0:00:20.1]} 55...
Rd8+ {[%clk 0:00:21.2]} 56. Ke4 {[%clk 0:00:20.3]} 56... Ra8 {[%clk 0:00:20.7]}
57. Ke5 {[%clk 0:00:20.2]} 57... Rxa7 {[%clk 0:00:21]} 58. Rxa7 {[%clk
0:00:20.2]} 58... Kxa7 {[%clk 0:00:21.9]} 59. Kf6 {[%clk 0:00:20.8]} 59... Kb6
{[%clk 0:00:22.8]} 60. Kxg5 {[%clk 0:00:20.5]} 60... Kb5 {[%clk 0:00:23.7]} 61.
Kf6 {[%clk 0:00:21.2]} 61... Kb4 {[%clk 0:00:24.6]} 62. Kxf7 {[%clk 0:00:22]}
62... Kxb3 {[%clk 0:00:25.5]} 63. g5 {[%clk 0:00:22.8]} 63... Kc3 {[%clk
0:00:26.4]} 64. g6 {[%clk 0:00:23.7]} 64... Kxd3 {[%clk 0:00:27.3]} 65. g7
{[%clk 0:00:24.6]} 65... Ke4 {[%clk 0:00:28.2]} 66. g8=Q {[%clk 0:00:25.4]}
66... Kxf5 {[%clk 0:00:29.1]} 67. Qg6+ {[%clk 0:00:25.3]} 67... Ke5 {[%clk
0:00:29.2]} 68. Qf6+ {[%clk 0:00:25.4]} 68... Ke4 {[%clk 0:00:29.1]} 69. Qg5
{[%clk 0:00:25.4]} 69... Kd3 {[%clk 0:00:29.4]} 70. Qf4 {[%clk 0:00:25.2]} 70...
Kc3 {[%clk 0:00:28.6]} 71. Qe4 {[%clk 0:00:25.1]} 1-0

[Event "Early-Titled-Tuesday-Blitz-June-18-2024"]
[Site "Chess.com"]
[Date "2024.06.18"]
[Round "11"]
[White "AndrewMaco"]
[Black "gilbert_gm"]
[Result "1-0"]
[WhiteElo "2725"]
[BlackElo "2860"]
[TimeControl "180+1"]
[EndTime "10:08:36 PDT"]
[Termination "AndrewMaco won on time"]

1. e4 {[%clk 0:03:00.9]} 1... e5 {[%clk 0:00:42.5]} 2. Nf3 {[%clk 0:03:00.8]}
2... Nc6 {[%clk 0:00:41.6]} 3. Bb5 {[%clk 0:03:00.7]} 3... a6 {[%clk 0:00:41.8]}
4. Ba4 {[%clk 0:03:00.4]} 4... Nf6 {[%clk 0:00:42.4]} 5. O-O {[%clk 0:03:00.6]}
5... Be7 {[%clk 0:00:42.5]} 6. Re1 {[%clk 0:03:00.5]} 6... b5 {[%clk 0:00:42.8]}
7. Bb3 {[%clk 0:03:01.1]} 7... O-O {[%clk 0:00:43.7]} 8. a4 {[%clk 0:02:59.1]}
8... Rb8 {[%clk 0:00:43.8]} 9. c3 {[%clk 0:02:55.1]} 9... d5 {[%clk 0:00:37.5]}
10. exd5 {[%clk 0:02:48.2]} 10... Nxd5 {[%clk 0:00:38.4]} 11. axb5 {[%clk
0:02:48.5]} 11... axb5 {[%clk 0:00:38.1]} 12. d3 {[%clk 0:02:42.9]} 12... b4
{[%clk 0:00:31.9]} 13. Nxe5 {[%clk 0:02:24]} 13... Nxe5 {[%clk 0:00:32.8]} 14.
Rxe5 {[%clk 0:02:24.2]} 14... c6 {[%clk 0:00:33.3]} 15. Bxd5 {[%clk 0:02:08.5]}
15... cxd5 {[%clk 0:00:34.2]} 16. Bf4 {[%clk 0:02:09]} 16... bxc3 {[%clk
0:00:32.3]} 17. Nxc3 {[%clk 0:02:07.2]} 17... Rxb2 {[%clk 0:00:27.5]} 18. Rxd5
{[%clk 0:01:55.7]} 18... Qe8 {[%clk 0:00:27.1]} 19. Ne4 {[%clk 0:01:32.9]} 19...
Be6 {[%clk 0:00:24.1]} 20. Rda5 {[%clk 0:01:28.4]} 20... Qc6 {[%clk 0:00:20.5]}
21. Be5 {[%clk 0:01:21.9]} 21... Rb5 {[%clk 0:00:17]} 22. Rxb5 {[%clk
0:01:12.4]} 22... Qxb5 {[%clk 0:00:17.9]} 23. Bd6 {[%clk 0:01:10.7]} 23... Bxd6
{[%clk 0:00:16.1]} 24. Nxd6 {[%clk 0:01:11.6]} 24... Qd5 {[%clk 0:00:16.5]} 25.
Ne4 {[%clk 0:01:09.9]} 25... Rd8 {[%clk 0:00:16.7]} 26. Qe2 {[%clk 0:01:03.3]}
26... h6 {[%clk 0:00:16.3]} 27. Rd1 {[%clk 0:01:02.9]} 27... Bf5 {[%clk
0:00:15.6]} 28. f3 {[%clk 0:01:01.2]} 28... Qd4+ {[%clk 0:00:16.1]} 29. Qf2
{[%clk 0:00:59.8]} 29... Qa4 {[%clk 0:00:14]} 30. Qe2 {[%clk 0:00:44.3]} 30...
Qd4+ {[%clk 0:00:13.2]} 31. Nf2 {[%clk 0:00:42.4]} 31... Bg6 {[%clk 0:00:12]}
32. g3 {[%clk 0:00:34.7]} 32... Qd7 {[%clk 0:00:11]} 33. Kg2 {[%clk 0:00:34.9]}
33... Re8 {[%clk 0:00:11.6]} 34. Qd2 {[%clk 0:00:35]} 34... Qd4 {[%clk
0:00:11.8]} 35. Re1 {[%clk 0:00:32.9]} 35... Rb8 {[%clk 0:00:12.4]} 36. Qe3
{[%clk 0:00:32.9]} 36... Qd5 {[%clk 0:00:11.4]} 37. d4 {[%clk 0:00:31.8]} 37...
Rb3 {[%clk 0:00:10.9]} 38. Qf4 {[%clk 0:00:26.6]} 38... Kh7 {[%clk 0:00:11.3]}
39. Re5 {[%clk 0:00:24.8]} 39... Qd7 {[%clk 0:00:08.8]} 40. Rc5 {[%clk
0:00:22.8]} 40... Rb2 {[%clk 0:00:07.9]} 41. Qe3 {[%clk 0:00:16.7]} 41... Qa7
{[%clk 0:00:04.9]} 42. Rc8 {[%clk 0:00:14.2]} 42... Qa4 {[%clk 0:00:03.6]} 43.
Qe8 {[%clk 0:00:11.2]} 43... Qxe8 {[%clk 0:00:03.8]} 44. Rxe8 {[%clk 0:00:12.1]}
44... Rd2 {[%clk 0:00:04.6]} 45. Rd8 {[%clk 0:00:12.1]} 45... Bf5 {[%clk
0:00:03.7]} 46. g4 {[%clk 0:00:12]} 46... Be6 {[%clk 0:00:03.6]} 47. Kg3 {[%clk
0:00:12.4]} 47... Ra2 {[%clk 0:00:01.8]} 48. Ne4 {[%clk 0:00:12.6]} 48... Ra3
{[%clk 0:00:01.2]} 49. d5 {[%clk 0:00:12.4]} 1-0

[Event "Early-Titled-Tuesday-Blitz-June-18-2024"]
[Site "Chess.com"]
[Date "2024.06.18"]
[Round "11"]
[White "tetrix83"]
[Black "GlavkonVVS"]
[Result "1-0"]
[WhiteElo "2679"]
[BlackElo "2540"]
[TimeControl "180+1"]
[EndTime "10:08:36 PDT"]
[Termination "tetrix83 won by resignation"]

1. e4 {[%clk 0:02:58.8]} 1... Nf6 {[%clk 0:02:59]} 2. e5 {[%clk 0:02:56.3]} 2...
Nd5 {[%clk 0:02:58.9]} 3. d4 {[%clk 0:02:56]} 3... d6 {[%clk 0:02:58.8]} 4. c4
{[%clk 0:02:56.2]} 4... Nb6 {[%clk 0:02:59]} 5. exd6 {[%clk 0:02:56.7]} 5...
cxd6 {[%clk 0:02:59.2]} 6. Nc3 {[%clk 0:02:56.8]} 6... g6 {[%clk 0:02:59.4]} 7.
Be3 {[%clk 0:02:57.1]} 7... Bg7 {[%clk 0:02:59.6]} 8. Rc1 {[%clk 0:02:57.3]}
8... O-O {[%clk 0:02:59.5]} 9. b3 {[%clk 0:02:57.8]} 9... f5 {[%clk 0:02:59]}
10. Nh3 {[%clk 0:02:57.1]} 10... e5 {[%clk 0:02:57.1]} 11. dxe5 {[%clk
0:02:42.3]} 11... dxe5 {[%clk 0:02:56.9]} 12. Qxd8 {[%clk 0:02:39.9]} 12... Rxd8
{[%clk 0:02:56.3]} 13. c5 {[%clk 0:02:40.4]} 13... f4 {[%clk 0:02:56.5]} 14. Bd2
{[%clk 0:02:23.7]} 14... N6d7 {[%clk 0:02:25.9]} 15. Bc4+ {[%clk 0:02:19]} 15...
Kf8 {[%clk 0:02:24.7]} 16. Ne4 {[%clk 0:02:13.3]} 16... h6 {[%clk 0:02:21.6]}
17. f3 {[%clk 0:01:51.5]} 17... Nc6 {[%clk 0:02:21.2]} 18. Nhf2 {[%clk 0:01:49]}
18... Nf6 {[%clk 0:02:16.5]} 19. b4 {[%clk 0:01:46.7]} 19... Bf5 {[%clk
0:02:15.4]} 20. Nd6 {[%clk 0:01:45.2]} 20... Rab8 {[%clk 0:01:55.8]} 21. b5
{[%clk 0:01:12.4]} 21... Nd4 {[%clk 0:01:55.9]} 22. Bb4 {[%clk 0:01:12.6]} 22...
Nc2+ {[%clk 0:01:46.2]} 23. Rxc2 {[%clk 0:01:12.5]} 23... Bxc2 {[%clk
0:01:46.1]} 24. c6 {[%clk 0:01:03.5]} 24... bxc6 {[%clk 0:01:31.3]} 25. Nf5+
{[%clk 0:00:51.2]} 25... Ke8 {[%clk 0:01:30.8]} 26. Nxg7+ {[%clk 0:00:51.4]}
26... Kd7 {[%clk 0:01:29.5]} 27. Ne6 {[%clk 0:00:49.3]} 27... cxb5 {[%clk
0:01:20]} 28. Nc5+ {[%clk 0:00:30.7]} 28... Kc6 {[%clk 0:01:19.4]} 29. Bb3
{[%clk 0:00:25.1]} 29... Nd5 {[%clk 0:00:59.7]} 30. Ba5 {[%clk 0:00:21.2]} 30...
Bxb3 {[%clk 0:00:44.9]} 31. Nxb3 {[%clk 0:00:22.1]} 31... Rd7 {[%clk 0:00:41.1]}
32. Ke2 {[%clk 0:00:22.5]} 32... Ne3 {[%clk 0:00:37.9]} 33. Rc1+ {[%clk
0:00:22.7]} 33... Kd5 {[%clk 0:00:38.1]} 34. Ne4 {[%clk 0:00:20.2]} 34... b4
{[%clk 0:00:34.8]} 35. Nf6+ {[%clk 0:00:19.9]} 35... Ke6 {[%clk 0:00:34.6]} 36.
Nxd7 {[%clk 0:00:20.3]} 36... Kxd7 {[%clk 0:00:35]} 37. Nc5+ {[%clk 0:00:20.7]}
37... Ke7 {[%clk 0:00:33.1]} 38. Nd3 {[%clk 0:00:20.6]} 38... b3 {[%clk
0:00:32.3]} 39. Rc7+ {[%clk 0:00:18.6]} 39... Kd6 {[%clk 0:00:31.7]} 40. axb3
{[%clk 0:00:18]} 40... Rxb3 {[%clk 0:00:30.8]} 41. Rxa7 {[%clk 0:00:18.9]} 41...
Nxg2 {[%clk 0:00:29.8]} 42. Bc7+ {[%clk 0:00:18.9]} 42... Kd5 {[%clk 0:00:28.9]}
43. Ra5+ {[%clk 0:00:18.9]} 43... Kc6 {[%clk 0:00:28.4]} 44. Bxe5 {[%clk
0:00:19.1]} 44... g5 {[%clk 0:00:26.6]} 45. Ra6+ {[%clk 0:00:17.5]} 45... Kd5
{[%clk 0:00:26.3]} 46. Rd6+ {[%clk 0:00:17.5]} 46... Kc4 {[%clk 0:00:25.9]} 47.
Rc6+ {[%clk 0:00:17.5]} 47... Kd5 {[%clk 0:00:25.8]} 48. Rc5+ {[%clk 0:00:16.7]}
48... Ke6 {[%clk 0:00:25.6]} 49. Bg7 {[%clk 0:00:16.2]} 49... Ra3 {[%clk
0:00:14]} 50. Rc2 {[%clk 0:00:10.4]} 50... Ne3 {[%clk 0:00:12.5]} 51. Rb2 {[%clk
0:00:10.5]} 51... Nf5 {[%clk 0:00:11.5]} 52. Bf8 {[%clk 0:00:09.9]} 52... Kf7
{[%clk 0:00:10.8]} 53. Bxa3 {[%clk 0:00:09.9]} 1-0

[Event "Early-Titled-Tuesday-Blitz-June-18-2024"]
[Site "Chess.com"]
[Date "2024.06.18"]
[Round "11"]
[White "ab-lsv"]
[Black "campochess"]
[Result "1-0"]
[WhiteElo "2346"]
[BlackElo "2198"]
[TimeControl "180+1"]
[EndTime "10:08:37 PDT"]
[Termination "ab-lsv won by resignation"]

1. d4 {[%clk 0:02:59.8]} 1... Nf6 {[%clk 0:02:57.4]} 2. c4 {[%clk 0:03:00.1]}
2... g6 {[%clk 0:02:56.4]} 3. Nc3 {[%clk 0:03:00.4]} 3... d5 {[%clk 0:02:56.2]}
4. Nf3 {[%clk 0:03:00.4]} 4... Bg7 {[%clk 0:02:55.5]} 5. Qb3 {[%clk 0:03:00.9]}
5... dxc4 {[%clk 0:02:54.5]} 6. Qxc4 {[%clk 0:03:01.8]} 6... c6 {[%clk
0:02:53.5]} 7. e4 {[%clk 0:03:01.2]} 7... O-O {[%clk 0:02:53.2]} 8. Be2 {[%clk
0:03:01]} 8... Nbd7 {[%clk 0:02:51.2]} 9. O-O {[%clk 0:02:56.4]} 9... Nb6 {[%clk
0:02:51]} 10. Qb3 {[%clk 0:02:52.4]} 10... Bg4 {[%clk 0:02:50.9]} 11. Be3 {[%clk
0:02:51.9]} 11... a5 {[%clk 0:02:34.8]} 12. Rfd1 {[%clk 0:02:46.3]} 12... a4
{[%clk 0:02:34.7]} 13. Qc2 {[%clk 0:02:46.1]} 13... Qc8 {[%clk 0:02:29]} 14.
Rac1 {[%clk 0:02:41.8]} 14... Nfd7 {[%clk 0:02:26.2]} 15. h3 {[%clk 0:02:34.8]}
15... Bxf3 {[%clk 0:02:24.8]} 16. Bxf3 {[%clk 0:02:35.7]} 16... Nc4 {[%clk
0:02:16.6]} 17. Bg5 {[%clk 0:02:34.9]} 17... Nf6 {[%clk 0:02:09.7]} 18. e5
{[%clk 0:02:23.6]} 18... Nd7 {[%clk 0:01:54.9]} 19. Bxe7 {[%clk 0:02:22.6]}
19... Re8 {[%clk 0:01:55]} 20. Bg5 {[%clk 0:02:20.9]} 20... b5 {[%clk
0:01:43.1]} 21. Ne4 {[%clk 0:02:10.2]} 21... Ndb6 {[%clk 0:01:41.5]} 22. b3
{[%clk 0:02:04.6]} 22... axb3 {[%clk 0:01:35.6]} 23. axb3 {[%clk 0:02:05.5]}
23... Na5 {[%clk 0:01:31.9]} 24. Nd6 {[%clk 0:02:02.6]} 24... Qe6 {[%clk
0:01:29.2]} 25. Nxe8 {[%clk 0:01:43]} 25... Rxe8 {[%clk 0:01:28.7]} 26. Rb1
{[%clk 0:01:30.3]} 26... Nd5 {[%clk 0:01:28.2]} 27. Qc5 {[%clk 0:01:23.3]} 27...
Bf8 {[%clk 0:01:21.5]} 28. Qa7 {[%clk 0:01:21.4]} 28... Bb4 {[%clk 0:01:10.3]}
29. Rdc1 {[%clk 0:01:03.3]} 29... Rc8 {[%clk 0:00:49.2]} 30. Bd1 {[%clk
0:00:54.4]} 30... Nc3 {[%clk 0:00:47.8]} 31. Rb2 {[%clk 0:00:45.9]} 31... Ne4
{[%clk 0:00:44.2]} 32. Be3 {[%clk 0:00:41.6]} 32... Bc3 {[%clk 0:00:36.9]} 33.
Rbb1 {[%clk 0:00:40.9]} 33... Bd2 {[%clk 0:00:24.7]} 34. Rc2 {[%clk 0:00:39.5]}
34... Bxe3 {[%clk 0:00:24]} 35. fxe3 {[%clk 0:00:39.3]} 35... Nxb3 {[%clk
0:00:23.2]} 36. Bf3 {[%clk 0:00:34]} 36... Nbd2 {[%clk 0:00:23]} 37. Rbc1 {[%clk
0:00:27.1]} 37... h5 {[%clk 0:00:22.2]} 38. Bxe4 {[%clk 0:00:23.9]} 38... Nxe4
{[%clk 0:00:21]} 39. Qb7 {[%clk 0:00:23.4]} 39... h4 {[%clk 0:00:18.6]} 40. Rxc6
{[%clk 0:00:22.8]} 40... Rxc6 {[%clk 0:00:18.1]} 41. Qxc6 {[%clk 0:00:23.1]}
41... Qf5 {[%clk 0:00:18.2]} 42. Qc2 {[%clk 0:00:22.7]} 42... b4 {[%clk
0:00:15.4]} 43. Rf1 {[%clk 0:00:22]} 43... b3 {[%clk 0:00:13.2]} 44. Rxf5 {[%clk
0:00:20.1]} 44... bxc2 {[%clk 0:00:12.9]} 45. Rf1 {[%clk 0:00:20.4]} 45... Nc3
{[%clk 0:00:12.8]} 46. Kf2 {[%clk 0:00:19.3]} 46... Na2 {[%clk 0:00:12.4]} 47.
Ke2 {[%clk 0:00:19]} 47... c1=Q {[%clk 0:00:12.3]} 48. Rxc1 {[%clk 0:00:19.3]}
48... Nxc1+ {[%clk 0:00:12.4]} 49. Kd2 {[%clk 0:00:19.8]} 49... Nb3+ {[%clk
0:00:12.3]} 50. Kc3 {[%clk 0:00:19.5]} 50... Na5 {[%clk 0:00:12.9]} 51. d5
{[%clk 0:00:19.2]} 51... Kf8 {[%clk 0:00:13.2]} 52. Kb4 {[%clk 0:00:18.7]} 52...
Ke7 {[%clk 0:00:13.7]} 53. Kxa5 {[%clk 0:00:18.8]} 53... g5 {[%clk 0:00:12.8]}
54. Kb5 {[%clk 0:00:18.4]} 1-0

[Event "Early-Titled-Tuesday-Blitz-June-18-2024"]
[Site "Chess.com"]
[Date "2024.06.18"]
[Round "11"]
[White "azikom"]
[Black "JosefineHeinemann"]
[Result "1/2-1/2"]
[WhiteElo "2677"]
[BlackElo "2482"]
[TimeControl "180+1"]
[EndTime "10:08:38 PDT"]
[Termination "Game drawn by agreement"]

1. c4 {[%clk 0:02:59.4]} 1... e6 {[%clk 0:02:56.4]} 2. Nc3 {[%clk 0:02:57.6]}
2... c5 {[%clk 0:02:56]} 3. e3 {[%clk 0:02:58.2]} 3... Nf6 {[%clk 0:02:55.4]} 4.
Nf3 {[%clk 0:02:57.7]} 4... d5 {[%clk 0:02:55.5]} 5. cxd5 {[%clk 0:02:58.2]}
5... exd5 {[%clk 0:02:55.2]} 6. Bb5+ {[%clk 0:02:58.6]} 6... Nc6 {[%clk
0:02:53.8]} 7. d4 {[%clk 0:02:58.1]} 7... cxd4 {[%clk 0:02:51]} 8. Nxd4 {[%clk
0:02:57.6]} 8... Bd7 {[%clk 0:02:51.4]} 9. O-O {[%clk 0:02:57]} 9... Bd6 {[%clk
0:02:50.9]} 10. Nf3 {[%clk 0:02:57.5]} 10... Bg4 {[%clk 0:02:47.8]} 11. h3
{[%clk 0:02:55.9]} 11... Bh5 {[%clk 0:02:47.4]} 12. b3 {[%clk 0:02:49.7]} 12...
O-O {[%clk 0:02:40.5]} 13. Bb2 {[%clk 0:02:49.5]} 13... Ne5 {[%clk 0:02:35.1]}
14. Be2 {[%clk 0:02:48.6]} 14... Rc8 {[%clk 0:02:28.2]} 15. Nxe5 {[%clk
0:02:47.1]} 15... Bxe5 {[%clk 0:02:27.9]} 16. Bxh5 {[%clk 0:02:44.5]} 16... Bxc3
{[%clk 0:02:27.4]} 17. Bxc3 {[%clk 0:02:42.4]} 17... Rxc3 {[%clk 0:02:28.3]} 18.
Bf3 {[%clk 0:02:42.2]} 18... Qa5 {[%clk 0:02:13.2]} 19. Qd4 {[%clk 0:02:38.1]}
19... Rfc8 {[%clk 0:02:11.6]} 20. Rfd1 {[%clk 0:02:36.5]} 20... Rc2 {[%clk
0:01:35.3]} 21. Bxd5 {[%clk 0:02:31.4]} 21... Qxd5 {[%clk 0:01:30.1]} 22. Qxd5
{[%clk 0:02:30.8]} 22... Nxd5 {[%clk 0:01:31]} 23. Rxd5 {[%clk 0:02:31.1]} 23...
g6 {[%clk 0:01:31.3]} 24. Rd7 {[%clk 0:02:27.4]} 24... Rb2 {[%clk 0:01:20]} 25.
Rxb7 {[%clk 0:02:01.2]} 25... Rcc2 {[%clk 0:01:19.8]} 26. Rf1 {[%clk 0:02:01.8]}
26... Rxa2 {[%clk 0:01:19.9]} 27. g4 {[%clk 0:02:01.9]} 27... h6 {[%clk
0:01:19]} 28. Kg2 {[%clk 0:01:59.3]} 28... Rcb2 {[%clk 0:01:14.1]} 29. Kg3
{[%clk 0:01:54.2]} 29... Ra3 {[%clk 0:01:13]} 30. b4 {[%clk 0:01:50.5]} 30...
Ra4 {[%clk 0:01:12.1]} 31. Rd1 {[%clk 0:01:44.5]} 31... Rbxb4 {[%clk 0:01:11.3]}
32. Re7 {[%clk 0:01:41]} 32... Re4 {[%clk 0:01:09.3]} 33. Rb7 {[%clk 0:01:18.2]}
33... Reb4 {[%clk 0:01:08.5]} 34. Rdd7 {[%clk 0:01:09.7]} 34... Rxb7 {[%clk
0:01:08]} 35. Rxb7 {[%clk 0:01:09.7]} 35... g5 {[%clk 0:01:07.7]} 36. h4 {[%clk
0:01:08.1]} 36... Kg7 {[%clk 0:00:40.6]} 37. h5 {[%clk 0:01:07.5]} 37... Ra3
{[%clk 0:00:38.8]} 38. Rc7 {[%clk 0:01:05.7]} 38... Ra4 {[%clk 0:00:36]} 39. Re7
{[%clk 0:01:01.8]} 39... Kf6 {[%clk 0:00:35.1]} 40. Rd7 {[%clk 0:01:01.5]} 40...
Kg7 {[%clk 0:00:35.4]} 41. Rd6 {[%clk 0:01:00.6]} 41... Ra3 {[%clk 0:00:32.4]}
42. Kf3 {[%clk 0:00:59.8]} 42... Ra4 {[%clk 0:00:31.5]} 43. Rc6 {[%clk
0:00:59.7]} 43... Kh7 {[%clk 0:00:27.7]} 44. Rd6 {[%clk 0:00:55.2]} 44... Kg7
{[%clk 0:00:27.8]} 45. Kg3 {[%clk 0:00:51]} 45... Ra3 {[%clk 0:00:26.9]} 46. Rd7
{[%clk 0:00:49.1]} 46... Ra4 {[%clk 0:00:26]} 47. Re7 {[%clk 0:00:48.3]} 47...
Kf6 {[%clk 0:00:25.6]} 48. Re8 {[%clk 0:00:48]} 48... Kg7 {[%clk 0:00:26]} 49.
e4 {[%clk 0:00:43.7]} 49... Ra3+ {[%clk 0:00:24.3]} 50. f3 {[%clk 0:00:43.3]}
50... a5 {[%clk 0:00:24.1]} 51. e5 {[%clk 0:00:41.8]} 51... a4 {[%clk
0:00:19.8]} 52. Re7 {[%clk 0:00:41.7]} 52... Kf8 {[%clk 0:00:19.4]} 53. Ra7
{[%clk 0:00:40.5]} 53... Kg8 {[%clk 0:00:19.4]} 54. Ra8+ {[%clk 0:00:38.8]}
54... Kg7 {[%clk 0:00:19.6]} 55. Ra6 {[%clk 0:00:39.1]} 55... Ra1 {[%clk
0:00:18.6]} 56. Ra7 {[%clk 0:00:36.5]} 56... Kg8 {[%clk 0:00:17.7]} 57. Kf2
{[%clk 0:00:35.8]} 57... a3 {[%clk 0:00:17.6]} 58. Ra6 {[%clk 0:00:31.7]} 58...
a2 {[%clk 0:00:17.8]} 59. Kg2 {[%clk 0:00:31.7]} 59... Re1 {[%clk 0:00:15.5]}
60. Rxa2 {[%clk 0:00:31.4]} 60... Rxe5 {[%clk 0:00:15.5]} 61. Ra6 {[%clk
0:00:31.8]} 61... Kg7 {[%clk 0:00:15.5]} 1/2-1/2